[Event "Titled Tuesday Blitz January 11 2022"]
[White "Muradli, Mahammad"]
[Black "Seul, Georg"]
[WhiteFideId "13409301"]
[BlackFideId "4601653"]
[WhiteElo "2645"]
[BlackElo "2271"]
[Result "1-0"]
[Round "04"]
[TimeControl "180+1"]
[Date "2022.01.11"]
[WhiteClock "0:00:04"]
[BlackClock "0:00:01"]

1. c4 {[%clk 0:03:00]}  e5 {[%clk 0:02:59]} 2. d3 {[%clk 0:03:00]}  f5 {[%clk 0:02:56]} 3. Nc3 {[%clk 0:02:59]}  Nf6 {[%clk 0:02:56]} 4. g3 {[%clk 0:03:00]}  Bb4 {[%clk 0:02:49]} 5. Bd2 {[%clk 0:02:59]}  O-O {[%clk 0:02:43]} 6. Bg2 {[%clk 0:02:59]}  d6 {[%clk 0:02:42]} 7. a3 {[%clk 0:02:58]}  Bxc3 {[%clk 0:02:39]} 8. Bxc3 {[%clk 0:02:59]}  c5 {[%clk 0:02:39]} 9. e3 {[%clk 0:02:57]}  f4 {[%clk 0:02:36]} 10. Nf3 {[%clk 0:02:25]}  fxe3 {[%clk 0:02:34]} 11. fxe3 {[%clk 0:02:24]}  Nc6 {[%clk 0:02:29]} 12. O-O {[%clk 0:02:23]}  Bg4 {[%clk 0:02:26]} 13. Qc2 {[%clk 0:02:08]}  Qe7 {[%clk 0:02:06]} 14. Nd2 {[%clk 0:02:08]}  Be6 {[%clk 0:01:54]} 15. Rae1 {[%clk 0:02:04]}  h5 {[%clk 0:01:47]} 16. Ne4 {[%clk 0:02:03]}  h4 {[%clk 0:01:44]} 17. gxh4 {[%clk 0:01:51]}  Nxe4 {[%clk 0:01:41]} 18. Bxe4 {[%clk 0:01:52]}  Qxh4 {[%clk 0:01:39]} 19. Rxf8+ {[%clk 0:01:06]}  Rxf8 {[%clk 0:01:38]} 20. Qg2 {[%clk 0:01:07]}  Bh3 {[%clk 0:01:11]} 21. Qg3 {[%clk 0:01:01]}  Qh5 {[%clk 0:00:58]} 22. Kh1 {[%clk 0:01:00]}  Rf1+ {[%clk 0:00:47]} 23. Rxf1 {[%clk 0:00:59]}  Bxf1 {[%clk 0:00:47]} 24. Kg1 {[%clk 0:00:15]}  Bh3 {[%clk 0:00:44]} 25. Kf2 {[%clk 0:00:13]}  Bf5 {[%clk 0:00:40]} 26. Bf3 {[%clk 0:00:13]}  Qf7 {[%clk 0:00:39]} 27. Ke2 {[%clk 0:00:06]}  Kf8 {[%clk 0:00:34]} 28. Qh4 {[%clk 0:00:06]}  Bxd3+ {[%clk 0:00:31]} 29. Kxd3 {[%clk 0:00:06]}  Qxf3 {[%clk 0:00:31]} 30. Qh8+ {[%clk 0:00:04]}  Kf7 {[%clk 0:00:31]} 31. Qc8 {[%clk 0:00:04]}  Ne7 {[%clk 0:00:16]} 32. Qd7 {[%clk 0:00:03]}  Qf5+ {[%clk 0:00:14]} 33. Qxf5+ {[%clk 0:00:04]}  Nxf5 {[%clk 0:00:14]} 34. Ke4 {[%clk 0:00:04]}  Ke6 {[%clk 0:00:14]} 35. Be1 {[%clk 0:00:05]}  Ne7 {[%clk 0:00:13]} 36. Bh4 {[%clk 0:00:05]}  d5+ {[%clk 0:00:13]} 37. Kd3 {[%clk 0:00:03]}  Nc6 {[%clk 0:00:12]} 38. cxd5+ {[%clk 0:00:03]}  Kxd5 {[%clk 0:00:12]} 39. e4+ {[%clk 0:00:04]}  Ke6 {[%clk 0:00:12]} 40. Kc4 {[%clk 0:00:04]}  Kd6 {[%clk 0:00:11]} 41. Bf2 {[%clk 0:00:03]}  Nd4 {[%clk 0:00:11]} 42. Bg3 {[%clk 0:00:03]}  b5+ {[%clk 0:00:11]} 43. Kc3 {[%clk 0:00:03]}  a5 {[%clk 0:00:11]} 44. Bh4 {[%clk 0:00:04]}  c4 {[%clk 0:00:10]} 45. Bd8 {[%clk 0:00:03]}  Nc6 {[%clk 0:00:09]} 46. Bb6 {[%clk 0:00:04]}  g6 {[%clk 0:00:08]} 47. h3 {[%clk 0:00:03]}  Ke6 {[%clk 0:00:07]} 48. a4 {[%clk 0:00:04]}  bxa4 {[%clk 0:00:06]} 49. Kxc4 {[%clk 0:00:05]}  Kd6 {[%clk 0:00:06]} 50. Kb5 {[%clk 0:00:05]}  Nd4+ {[%clk 0:00:05]} 51. Kxa4 {[%clk 0:00:05]}  Nf3 {[%clk 0:00:05]} 52. Be3 {[%clk 0:00:05]}  g5 {[%clk 0:00:02]} 53. Kxa5 {[%clk 0:00:05]}  Kc6 {[%clk 0:00:03]} 54. b4 {[%clk 0:00:05]}  Nd4 {[%clk 0:00:03]} 55. Ka4 {[%clk 0:00:05]}  Nc2 {[%clk 0:00:02]} 56. Bxg5 {[%clk 0:00:05]}  Ne1 {[%clk 0:00:01]} 57. h4 {[%clk 0:00:04]} 1-0


[Site "https://www.chess.com"]

[Event "Titled Tuesday Blitz January 11 2022"]
[White "Paravyan, David"]
[Black "Mitusov, Semen"]
[WhiteFideId "4194985"]
[BlackFideId "14151049"]
[WhiteElo "2569"]
[BlackElo "2246"]
[Result "1-0"]
[Round "04"]
[TimeControl "180+1"]
[Date "2022.01.11"]
[WhiteClock "0:01:55"]
[BlackClock "0:00:44"]

1. Nc3 {[%clk 0:03:00]}  e5 {[%clk 0:02:59]} 2. Nf3 {[%clk 0:03:00]}  Nc6 {[%clk 0:02:58]} 3. d4 {[%clk 0:03:00]}  exd4 {[%clk 0:02:57]} 4. Nxd4 {[%clk 0:03:01]}  Nf6 {[%clk 0:02:57]} 5. e4 {[%clk 0:03:00]}  Bb4 {[%clk 0:02:52]} 6. Nxc6 {[%clk 0:03:00]}  bxc6 {[%clk 0:02:53]} 7. Bd3 {[%clk 0:03:01]}  d5 {[%clk 0:02:52]} 8. exd5 {[%clk 0:03:00]}  cxd5 {[%clk 0:02:53]} 9. O-O {[%clk 0:03:00]}  O-O {[%clk 0:02:53]} 10. Bg5 {[%clk 0:03:00]}  c6 {[%clk 0:02:53]} 11. Qf3 {[%clk 0:03:01]}  Bd6 {[%clk 0:02:53]} 12. Rae1 {[%clk 0:02:59]}  Rb8 {[%clk 0:02:53]} 13. Nd1 {[%clk 0:02:52]}  h6 {[%clk 0:02:30]} 14. Bxf6 {[%clk 0:02:52]}  Qxf6 {[%clk 0:02:30]} 15. Qxf6 {[%clk 0:02:52]}  gxf6 {[%clk 0:02:31]} 16. b3 {[%clk 0:02:53]}  Bd7 {[%clk 0:02:18]} 17. Ne3 {[%clk 0:02:51]}  Rfe8 {[%clk 0:02:18]} 18. Bf5 {[%clk 0:02:47]}  Be6 {[%clk 0:02:16]} 19. g4 {[%clk 0:02:23]}  Bf4 {[%clk 0:02:09]} 20. Kg2 {[%clk 0:02:16]}  Bxe3 {[%clk 0:02:01]} 21. Rxe3 {[%clk 0:02:17]}  Bxf5 {[%clk 0:01:59]} 22. gxf5 {[%clk 0:02:18]}  Re5 {[%clk 0:01:56]} 23. Rfe1 {[%clk 0:02:18]}  Rxf5 {[%clk 0:01:56]} 24. Re7 {[%clk 0:02:17]}  a5 {[%clk 0:01:48]} 25. Rc7 {[%clk 0:02:14]}  a4 {[%clk 0:01:28]} 26. Ree7 {[%clk 0:02:11]}  axb3 {[%clk 0:01:27]} 27. cxb3 {[%clk 0:02:11]}  Rg5+ {[%clk 0:01:25]} 28. Kf1 {[%clk 0:02:11]}  Rg7 {[%clk 0:01:24]} 29. Rxc6 {[%clk 0:02:11]}  Ra8 {[%clk 0:01:18]} 30. a4 {[%clk 0:02:11]}  Rb8 {[%clk 0:01:18]} 31. Re3 {[%clk 0:02:09]}  Rg4 {[%clk 0:01:12]} 32. Rxf6 {[%clk 0:02:08]}  Kg7 {[%clk 0:01:12]} 33. Ref3 {[%clk 0:02:05]}  Rb7 {[%clk 0:01:05]} 34. a5 {[%clk 0:01:54]}  Rgb4 {[%clk 0:00:59]} 35. a6 {[%clk 0:01:54]}  Ra7 {[%clk 0:00:48]} 36. Rxf7+ {[%clk 0:01:54]}  Rxf7 {[%clk 0:00:44]} 37. Rxf7+ {[%clk 0:01:55]}  Kxf7 {[%clk 0:00:44]} 38. a7 {[%clk 0:01:55]} 1-0


[Site "https://www.chess.com"]

[Event "Titled Tuesday Blitz January 11 2022"]
[White "Safarli, Eltaj"]
[Black "Volkov, Maksim"]
[WhiteFideId "13402129"]
[BlackFideId "54123070"]
[WhiteElo "2634"]
[BlackElo "2081"]
[Result "1-0"]
[Round "04"]
[TimeControl "180+1"]
[Date "2022.01.11"]
[WhiteClock "0:01:04"]
[BlackClock "0:00:20"]

1. e4 {[%clk 0:03:00]}  e6 {[%clk 0:03:00]} 2. d4 {[%clk 0:03:00]}  d5 {[%clk 0:03:00]} 3. Nd2 {[%clk 0:03:01]}  c5 {[%clk 0:03:00]} 4. Ngf3 {[%clk 0:02:59]}  Nf6 {[%clk 0:02:59]} 5. exd5 {[%clk 0:02:58]}  Nxd5 {[%clk 0:03:00]} 6. Ne4 {[%clk 0:02:54]}  cxd4 {[%clk 0:02:52]} 7. Nxd4 {[%clk 0:02:49]}  Be7 {[%clk 0:02:52]} 8. Bc4 {[%clk 0:02:48]}  O-O {[%clk 0:02:50]} 9. O-O {[%clk 0:02:48]}  Nf6 {[%clk 0:02:44]} 10. Re1 {[%clk 0:02:45]}  b6 {[%clk 0:02:32]} 11. Ng5 {[%clk 0:02:31]}  Bb7 {[%clk 0:02:25]} 12. Ndxe6 {[%clk 0:02:05]}  Qxd1 {[%clk 0:02:20]} 13. Rxd1 {[%clk 0:02:06]}  fxe6 {[%clk 0:02:20]} 14. Bxe6+ {[%clk 0:01:57]}  Kh8 {[%clk 0:02:20]} 15. Nf7+ {[%clk 0:01:58]}  Rxf7 {[%clk 0:02:20]} 16. Bxf7 {[%clk 0:01:59]}  Nc6 {[%clk 0:02:17]} 17. Bg5 {[%clk 0:01:55]}  Ne5 {[%clk 0:02:11]} 18. Bb3 {[%clk 0:01:52]}  h6 {[%clk 0:02:09]} 19. Bh4 {[%clk 0:01:51]}  Ng6 {[%clk 0:02:05]} 20. Bg3 {[%clk 0:01:50]}  Rc8 {[%clk 0:01:59]} 21. c3 {[%clk 0:01:49]}  Bc6 {[%clk 0:01:46]} 22. Be6 {[%clk 0:01:46]}  Rf8 {[%clk 0:01:44]} 23. a4 {[%clk 0:01:44]}  Ne4 {[%clk 0:01:38]} 24. Bd5 {[%clk 0:01:42]}  Bxd5 {[%clk 0:01:34]} 25. Rxd5 {[%clk 0:01:43]}  Nxg3 {[%clk 0:01:34]} 26. hxg3 {[%clk 0:01:42]}  Bc5 {[%clk 0:01:33]} 27. Rf1 {[%clk 0:01:42]}  a5 {[%clk 0:01:33]} 28. Rd2 {[%clk 0:01:35]}  Ne5 {[%clk 0:01:31]} 29. Re2 {[%clk 0:01:35]}  Nc4 {[%clk 0:01:29]} 30. b4 {[%clk 0:01:32]}  axb4 {[%clk 0:01:24]} 31. cxb4 {[%clk 0:01:33]}  Bd6 {[%clk 0:01:09]} 32. Rd1 {[%clk 0:01:30]}  Bb8 {[%clk 0:00:57]} 33. Rd7 {[%clk 0:01:22]}  Nd6 {[%clk 0:00:54]} 34. Re6 {[%clk 0:01:19]}  Nc4 {[%clk 0:00:47]} 35. Rb7 {[%clk 0:01:11]}  Be5 {[%clk 0:00:39]} 36. f4 {[%clk 0:01:09]}  Bd4+ {[%clk 0:00:38]} 37. Kh2 {[%clk 0:01:10]}  Ra8 {[%clk 0:00:34]} 38. f5 {[%clk 0:01:05]}  Rxa4 {[%clk 0:00:29]} 39. Rb8+ {[%clk 0:01:05]}  Kh7 {[%clk 0:00:29]} 40. Ree8 {[%clk 0:01:05]}  g5 {[%clk 0:00:20]} 41. Re7+ {[%clk 0:01:04]} 1-0


[Site "https://www.chess.com"]

[Event "Titled Tuesday Blitz January 11 2022"]
[White "Solovchuk, Oleksiy"]
[Black "Izoria, Zviad"]
[WhiteFideId "14115220"]
[BlackFideId "13601733"]
[WhiteElo "2295"]
[BlackElo "2626"]
[Result "0-1"]
[Round "04"]
[TimeControl "180+1"]
[Date "2022.01.11"]
[WhiteClock "0:00:03"]
[BlackClock "0:00:13"]

1. c4 {[%clk 0:03:00]}  e6 {[%clk 0:02:56]} 2. Nf3 {[%clk 0:02:59]}  d5 {[%clk 0:02:55]} 3. e3 {[%clk 0:02:59]}  Nf6 {[%clk 0:02:55]} 4. b3 {[%clk 0:03:00]}  c5 {[%clk 0:02:54]} 5. Bb2 {[%clk 0:03:00]}  Nc6 {[%clk 0:02:54]} 6. cxd5 {[%clk 0:03:00]}  exd5 {[%clk 0:02:55]} 7. d4 {[%clk 0:02:55]}  cxd4 {[%clk 0:02:54]} 8. Nxd4 {[%clk 0:02:54]}  Bb4+ {[%clk 0:02:53]} 9. Bc3 {[%clk 0:02:54]}  Bd6 {[%clk 0:02:54]} 10. Bd3 {[%clk 0:02:50]}  O-O {[%clk 0:02:52]} 11. Nd2 {[%clk 0:02:49]}  Re8 {[%clk 0:02:42]} 12. Nxc6 {[%clk 0:02:43]}  bxc6 {[%clk 0:02:42]} 13. Qc2 {[%clk 0:02:38]}  c5 {[%clk 0:02:26]} 14. Be2 {[%clk 0:02:31]}  d4 {[%clk 0:02:20]} 15. exd4 {[%clk 0:02:30]}  Bg4 {[%clk 0:02:18]} 16. f3 {[%clk 0:02:26]}  Nd5 {[%clk 0:02:10]} 17. Nc4 {[%clk 0:01:56]}  Nf4 {[%clk 0:01:58]} 18. fxg4 {[%clk 0:01:43]}  Rxe2+ {[%clk 0:01:34]} 19. Qxe2 {[%clk 0:01:44]}  Nxe2 {[%clk 0:01:35]} 20. Kxe2 {[%clk 0:01:44]}  Bf8 {[%clk 0:01:24]} 21. Rad1 {[%clk 0:01:39]}  Qh4 {[%clk 0:01:22]} 22. Kf3 {[%clk 0:01:05]}  Qf6+ {[%clk 0:01:05]} 23. Kg3 {[%clk 0:01:05]}  Bd6+ {[%clk 0:01:01]} 24. Nxd6 {[%clk 0:01:04]}  Qxd6+ {[%clk 0:01:02]} 25. Kf3 {[%clk 0:01:01]}  h5 {[%clk 0:00:50]} 26. g5 {[%clk 0:00:38]}  Qd5+ {[%clk 0:00:47]} 27. Kf2 {[%clk 0:00:37]}  Qf5+ {[%clk 0:00:43]} 28. Kg1 {[%clk 0:00:36]}  Qxg5 {[%clk 0:00:44]} 29. Re1 {[%clk 0:00:24]}  Rd8 {[%clk 0:00:35]} 30. h4 {[%clk 0:00:21]}  Qg4 {[%clk 0:00:19]} 31. dxc5 {[%clk 0:00:18]}  Rd3 {[%clk 0:00:20]} 32. Be5 {[%clk 0:00:16]}  Rd2 {[%clk 0:00:18]} 33. Rh2 {[%clk 0:00:13]}  Re2 {[%clk 0:00:17]} 34. Bg3 {[%clk 0:00:06]}  Rxe1+ {[%clk 0:00:13]} 35. Bxe1 {[%clk 0:00:06]}  Qe2 {[%clk 0:00:14]} 36. Bg3 {[%clk 0:00:04]}  Qe3+ {[%clk 0:00:13]} 37. Kf1 {[%clk 0:00:03]}  Qxg3 {[%clk 0:00:13]} 0-1


[Site "https://www.chess.com"]

[Event "Titled Tuesday Blitz January 11 2022"]
[White "Svane, Rasmus"]
[Black "Maximov, Dmitry"]
[WhiteFideId "4657101"]
[BlackFideId "14105659"]
[WhiteElo "2645"]
[BlackElo "2494"]
[Result "0-1"]
[Round "04"]
[TimeControl "180+1"]
[Date "2022.01.11"]
[WhiteClock "0:00:04"]
[BlackClock "0:00:12"]

1. Nf3 {[%clk 0:03:00]}  Nf6 {[%clk 0:02:59]} 2. g3 {[%clk 0:02:59]}  c5 {[%clk 0:02:59]} 3. Bg2 {[%clk 0:02:59]}  Nc6 {[%clk 0:03:00]} 4. c4 {[%clk 0:03:00]}  g6 {[%clk 0:03:00]} 5. O-O {[%clk 0:02:57]}  Bg7 {[%clk 0:03:01]} 6. d4 {[%clk 0:02:58]}  cxd4 {[%clk 0:03:01]} 7. Nxd4 {[%clk 0:02:59]}  Qb6 {[%clk 0:02:59]} 8. Nb3 {[%clk 0:02:54]}  O-O {[%clk 0:02:55]} 9. Nc3 {[%clk 0:02:55]}  d6 {[%clk 0:02:52]} 10. Be3 {[%clk 0:02:50]}  Qb4 {[%clk 0:02:42]} 11. c5 {[%clk 0:02:12]}  dxc5 {[%clk 0:02:23]} 12. Bxc5 {[%clk 0:02:04]}  Qg4 {[%clk 0:02:23]} 13. e4 {[%clk 0:01:37]}  Rd8 {[%clk 0:02:14]} 14. Qxg4 {[%clk 0:01:37]}  Bxg4 {[%clk 0:02:08]} 15. h3 {[%clk 0:01:24]}  Be6 {[%clk 0:02:08]} 16. f4 {[%clk 0:01:23]}  Nd7 {[%clk 0:02:03]} 17. Bf2 {[%clk 0:01:15]}  Bxb3 {[%clk 0:01:49]} 18. axb3 {[%clk 0:01:16]}  Nd4 {[%clk 0:01:46]} 19. e5 {[%clk 0:00:47]}  Nxb3 {[%clk 0:01:41]} 20. Rxa7 {[%clk 0:00:47]}  Rxa7 {[%clk 0:01:34]} 21. Bxa7 {[%clk 0:00:48]}  Ndc5 {[%clk 0:01:34]} 22. Rd1 {[%clk 0:00:41]}  Rxd1+ {[%clk 0:01:28]} 23. Nxd1 {[%clk 0:00:42]}  e6 {[%clk 0:01:29]} 24. Ne3 {[%clk 0:00:33]}  Nd3 {[%clk 0:01:17]} 25. Nd1 {[%clk 0:00:27]}  b5 {[%clk 0:01:08]} 26. Bc6 {[%clk 0:00:24]}  b4 {[%clk 0:01:08]} 27. Kf1 {[%clk 0:00:20]}  Nbc1 {[%clk 0:01:03]} 28. Bd4 {[%clk 0:00:15]}  h5 {[%clk 0:01:02]} 29. Nf2 {[%clk 0:00:14]}  h4 {[%clk 0:01:01]} 30. Nxd3 {[%clk 0:00:13]}  Nxd3 {[%clk 0:01:01]} 31. Ke2 {[%clk 0:00:13]}  Nc1+ {[%clk 0:00:58]} 32. Kd1 {[%clk 0:00:13]}  Nb3 {[%clk 0:00:57]} 33. Bf2 {[%clk 0:00:13]}  hxg3 {[%clk 0:00:57]} 34. Bxg3 {[%clk 0:00:14]}  Nd4 {[%clk 0:00:55]} 35. Be4 {[%clk 0:00:14]}  Bf8 {[%clk 0:00:45]} 36. Kd2 {[%clk 0:00:14]}  Kg7 {[%clk 0:00:35]} 37. Kd3 {[%clk 0:00:14]}  Nb3 {[%clk 0:00:34]} 38. Kc2 {[%clk 0:00:14]}  Nd4+ {[%clk 0:00:34]} 39. Kd2 {[%clk 0:00:14]}  Kh6 {[%clk 0:00:33]} 40. Kd3 {[%clk 0:00:09]}  Nb3 {[%clk 0:00:33]} 41. Bf3 {[%clk 0:00:08]}  g5 {[%clk 0:00:30]} 42. h4 {[%clk 0:00:07]}  gxh4 {[%clk 0:00:27]} 43. Bxh4 {[%clk 0:00:08]}  Kg6 {[%clk 0:00:25]} 44. Be4+ {[%clk 0:00:07]}  Kh5 {[%clk 0:00:25]} 45. Bd8 {[%clk 0:00:07]}  Kg4 {[%clk 0:00:24]} 46. Bg5 {[%clk 0:00:07]}  Bg7 {[%clk 0:00:14]} 47. Bc6 {[%clk 0:00:06]}  Bxe5 {[%clk 0:00:14]} 48. Be8 {[%clk 0:00:05]}  f6 {[%clk 0:00:13]} 49. Bf7 {[%clk 0:00:02]}  fxg5 {[%clk 0:00:12]} 50. fxe5 {[%clk 0:00:02]}  Kf5 {[%clk 0:00:13]} 51. Kc4 {[%clk 0:00:02]}  Nd2+ {[%clk 0:00:13]} 52. Kxb4 {[%clk 0:00:03]}  Kxe5 {[%clk 0:00:13]} 53. Kc3 {[%clk 0:00:03]}  Ne4+ {[%clk 0:00:13]} 54. Kd3 {[%clk 0:00:04]}  g4 {[%clk 0:00:13]} 55. Ke3 {[%clk 0:00:04]}  g3 {[%clk 0:00:12]} 0-1


[Site "https://www.chess.com"]

[Event "Titled Tuesday Blitz January 11 2022"]
[White "Vysochin, Spartak"]
[Black "Moskalenko, Alexander"]
[WhiteFideId "14103516"]
[BlackFideId "4155351"]
[WhiteElo "2401"]
[BlackElo "2515"]
[Result "0-1"]
[Round "04"]
[TimeControl "180+1"]
[Date "2022.01.11"]
[WhiteClock "0:00:11"]
[BlackClock "0:00:29"]

1. e4 {[%clk 0:03:00]}  d6 {[%clk 0:02:59]} 2. d4 {[%clk 0:03:00]}  Nf6 {[%clk 0:03:00]} 3. Nc3 {[%clk 0:02:59]}  g6 {[%clk 0:03:00]} 4. Bf4 {[%clk 0:02:50]}  Bg7 {[%clk 0:03:00]} 5. Qd2 {[%clk 0:02:50]}  c6 {[%clk 0:02:59]} 6. O-O-O {[%clk 0:02:44]}  b5 {[%clk 0:02:59]} 7. e5 {[%clk 0:02:44]}  dxe5 {[%clk 0:02:53]} 8. dxe5 {[%clk 0:02:44]}  Qxd2+ {[%clk 0:02:53]} 9. Rxd2 {[%clk 0:02:38]}  Nh5 {[%clk 0:02:53]} 10. g3 {[%clk 0:02:13]}  Nxf4 {[%clk 0:02:52]} 11. gxf4 {[%clk 0:02:13]}  Bh6 {[%clk 0:02:48]} 12. Nge2 {[%clk 0:02:12]}  Bg4 {[%clk 0:02:24]} 13. Rg1 {[%clk 0:02:11]}  Bxe2 {[%clk 0:02:17]} 14. Nxe2 {[%clk 0:02:10]}  Nd7 {[%clk 0:02:17]} 15. Bg2 {[%clk 0:02:07]}  Rc8 {[%clk 0:02:17]} 16. Rgd1 {[%clk 0:02:02]}  Nb8 {[%clk 0:02:06]} 17. c3 {[%clk 0:01:43]}  O-O {[%clk 0:02:06]} 18. Kc2 {[%clk 0:01:43]}  f6 {[%clk 0:01:57]} 19. e6 {[%clk 0:01:34]}  f5 {[%clk 0:01:57]} 20. Rd7 {[%clk 0:01:31]}  Nxd7 {[%clk 0:01:48]} 21. exd7 {[%clk 0:01:29]}  Rb8 {[%clk 0:01:49]} 22. Bxc6 {[%clk 0:01:28]}  Rfd8 {[%clk 0:01:49]} 23. Nd4 {[%clk 0:01:16]}  Kf7 {[%clk 0:01:41]} 24. Bxb5 {[%clk 0:01:03]}  Bxf4 {[%clk 0:01:05]} 25. Nc6 {[%clk 0:01:00]}  Rxd7 {[%clk 0:01:05]} 26. Rxd7 {[%clk 0:00:50]}  Rxb5 {[%clk 0:01:05]} 27. Rxe7+ {[%clk 0:00:50]}  Kg8 {[%clk 0:00:59]} 28. Rxa7 {[%clk 0:00:49]}  Bxh2 {[%clk 0:00:59]} 29. a4 {[%clk 0:00:49]}  Rc5 {[%clk 0:00:56]} 30. Ne7+ {[%clk 0:00:37]}  Kf8 {[%clk 0:00:56]} 31. b4 {[%clk 0:00:32]}  Re5 {[%clk 0:00:56]} 32. Nc6 {[%clk 0:00:32]}  Re2+ {[%clk 0:00:56]} 33. Kb3 {[%clk 0:00:32]}  Rxf2 {[%clk 0:00:57]} 34. Rxh7 {[%clk 0:00:28]}  Re2 {[%clk 0:00:43]} 35. a5 {[%clk 0:00:27]}  Bg1 {[%clk 0:00:42]} 36. b5 {[%clk 0:00:25]}  Re1 {[%clk 0:00:39]} 37. Nb4 {[%clk 0:00:19]}  f4 {[%clk 0:00:37]} 38. b6 {[%clk 0:00:19]}  f3 {[%clk 0:00:37]} 39. b7 {[%clk 0:00:19]}  Re8 {[%clk 0:00:35]} 40. Nd3 {[%clk 0:00:11]}  Ba7 {[%clk 0:00:29]} 0-1


[Site "https://www.chess.com"]

[Event "Titled Tuesday Blitz January 11 2022"]
[White "Willow, Jonah B"]
[Black "Quispe Arteaga, Gabriel"]
[WhiteFideId "438804"]
[BlackFideId "32059809"]
[WhiteElo "2261"]
[BlackElo "2229"]
[Result "1/2-1/2"]
[Round "04"]
[TimeControl "180+1"]
[Date "2022.01.11"]
[WhiteClock "0:00:32"]
[BlackClock "0:00:38"]

1. e4 {[%clk 0:03:00]}  c5 {[%clk 0:03:00]} 2. Nf3 {[%clk 0:03:01]}  e6 {[%clk 0:03:01]} 3. d4 {[%clk 0:03:01]}  cxd4 {[%clk 0:03:02]} 4. Nxd4 {[%clk 0:03:02]}  Nf6 {[%clk 0:03:02]} 5. Nc3 {[%clk 0:03:02]}  Nc6 {[%clk 0:03:03]} 6. Ndb5 {[%clk 0:03:02]}  Bb4 {[%clk 0:03:03]} 7. a3 {[%clk 0:02:59]}  Bxc3+ {[%clk 0:03:03]} 8. Nxc3 {[%clk 0:03:00]}  d5 {[%clk 0:03:04]} 9. exd5 {[%clk 0:03:00]}  exd5 {[%clk 0:03:05]} 10. Bd3 {[%clk 0:03:00]}  O-O {[%clk 0:03:05]} 11. O-O {[%clk 0:03:00]}  d4 {[%clk 0:03:06]} 12. Ne2 {[%clk 0:03:00]}  Bg4 {[%clk 0:03:06]} 13. f3 {[%clk 0:02:58]}  Bh5 {[%clk 0:03:06]} 14. Ng3 {[%clk 0:02:53]}  Bg6 {[%clk 0:03:06]} 15. Bg5 {[%clk 0:02:53]}  Qd6 {[%clk 0:03:02]} 16. Re1 {[%clk 0:02:47]}  Rfe8 {[%clk 0:03:02]} 17. Qd2 {[%clk 0:02:46]}  Nd5 {[%clk 0:02:59]} 18. Ne4 {[%clk 0:02:36]}  Bxe4 {[%clk 0:02:53]} 19. Bxe4 {[%clk 0:02:35]}  h6 {[%clk 0:02:43]} 20. Bh4 {[%clk 0:02:35]}  Nf6 {[%clk 0:02:43]} 21. Bd3 {[%clk 0:02:23]}  a6 {[%clk 0:02:38]} 22. Bg3 {[%clk 0:02:23]}  Qc5 {[%clk 0:02:37]} 23. Re2 {[%clk 0:02:17]}  Rxe2 {[%clk 0:02:03]} 24. Qxe2 {[%clk 0:02:18]}  Re8 {[%clk 0:02:03]} 25. Qd2 {[%clk 0:02:15]}  Ne5 {[%clk 0:02:02]} 26. Bf2 {[%clk 0:02:11]}  Nc4 {[%clk 0:02:02]} 27. Bxc4 {[%clk 0:02:09]}  Qxc4 {[%clk 0:02:03]} 28. Re1 {[%clk 0:01:50]}  Rxe1+ {[%clk 0:01:58]} 29. Bxe1 {[%clk 0:01:51]}  Nd5 {[%clk 0:01:58]} 30. Bf2 {[%clk 0:01:41]}  Ne3 {[%clk 0:01:48]} 31. Bxe3 {[%clk 0:01:30]}  dxe3 {[%clk 0:01:49]} 32. Qd8+ {[%clk 0:01:28]}  Kh7 {[%clk 0:01:49]} 33. Qd3+ {[%clk 0:01:29]}  Qxd3 {[%clk 0:01:44]} 34. cxd3 {[%clk 0:01:30]}  g5 {[%clk 0:01:39]} 35. g3 {[%clk 0:01:29]}  Kg6 {[%clk 0:01:36]} 36. Kf1 {[%clk 0:01:28]}  f5 {[%clk 0:01:36]} 37. f4 {[%clk 0:01:28]}  gxf4 {[%clk 0:01:28]} 38. gxf4 {[%clk 0:01:29]}  Kf7 {[%clk 0:01:28]} 39. Ke2 {[%clk 0:01:27]}  Ke6 {[%clk 0:01:28]} 40. Kxe3 {[%clk 0:01:24]}  Kd5 {[%clk 0:01:28]} 41. Ke2 {[%clk 0:01:16]}  Kc5 {[%clk 0:01:27]} 42. Ke3 {[%clk 0:01:15]}  Kd5 {[%clk 0:01:27]} 43. b3 {[%clk 0:01:12]}  Kc5 {[%clk 0:01:26]} 44. d4+ {[%clk 0:01:10]}  Kd5 {[%clk 0:01:26]} 45. Kd3 {[%clk 0:01:11]}  b5 {[%clk 0:01:26]} 46. Ke3 {[%clk 0:01:07]}  Ke6 {[%clk 0:01:21]} 47. Ke2 {[%clk 0:01:06]}  Kd5 {[%clk 0:01:14]} 48. Kd3 {[%clk 0:01:06]}  Kd6 {[%clk 0:01:15]} 49. a4 {[%clk 0:01:04]}  Kc6 {[%clk 0:01:13]} 50. Kc3 {[%clk 0:01:03]}  Kd5 {[%clk 0:01:11]} 51. Kd3 {[%clk 0:00:57]}  Kc6 {[%clk 0:01:09]} 52. h3 {[%clk 0:00:57]}  Kd5 {[%clk 0:01:08]} 53. Ke3 {[%clk 0:00:52]}  Kd6 {[%clk 0:01:06]} 54. Ke2 {[%clk 0:00:50]}  Kd5 {[%clk 0:01:03]} 55. Kd3 {[%clk 0:00:51]}  Kc6 {[%clk 0:01:01]} 56. Kc3 {[%clk 0:00:50]}  Kd5 {[%clk 0:01:00]} 57. axb5 {[%clk 0:00:51]}  axb5 {[%clk 0:00:59]} 58. h4 {[%clk 0:00:48]}  Ke4 {[%clk 0:00:56]} 59. Kb4 {[%clk 0:00:40]}  Kxd4 {[%clk 0:00:50]} 60. Kxb5 {[%clk 0:00:40]}  Ke3 {[%clk 0:00:51]} 61. b4 {[%clk 0:00:39]}  Kxf4 {[%clk 0:00:47]} 62. Kc5 {[%clk 0:00:38]}  Kg4 {[%clk 0:00:47]} 63. b5 {[%clk 0:00:39]}  f4 {[%clk 0:00:44]} 64. Kd4 {[%clk 0:00:34]}  f3 {[%clk 0:00:44]} 65. Ke3 {[%clk 0:00:34]}  Kg3 {[%clk 0:00:45]} 66. b6 {[%clk 0:00:35]}  f2 {[%clk 0:00:42]} 67. b7 {[%clk 0:00:35]}  f1=Q {[%clk 0:00:38]} 68. b8=Q+ {[%clk 0:00:36]}  Kxh4 {[%clk 0:00:39]} 69. Qf4+ {[%clk 0:00:31]}  Qxf4+ {[%clk 0:00:38]} 70. Kxf4 {[%clk 0:00:32]} 1/2-1/2


[Site "https://www.chess.com"]